bitfinex-derivatives/quotes_SOLF0:USTF0_20240830
["timestamp","ask_amount","ask_price","bid_price","bid_amount"]
[1725004260339,0.05199984,139.1,139.08,3.5944]
[1725004260947,11.07199984,139.1,139.07,3.64513833]
[1725004262442,11.07199984,139.1,139.07,0.05053833]
[1725004264946,14.66599984,139.1,139.07,0.05053833]
[1725004266154,11.02,139.09,139.07,0.05053833]
[1725004266745,0.05199984,139.1,139.07,0.05053833]
[1725004267741,0.05199984,139.1,139.08,3.5943]
[1725004269448,14.58434445,139.1,139.07,0.05053833]
[1725004269955,11.02,139.09,139.07,0.05053833]
[1725004270559,11.02,139.09,139.0,9.98571463]
[1725004270744,11.02,139.02,139.0,9.98571463]
[1725004270951,11.02,139.02,139.01,3.56732607]
[1725004271251,3.52815627,139.05,139.01,3.56732607]
[1725004271252,11.02,139.04,139.01,3.56732607]
[1725004271650,11.06822359,139.04,139.01,3.5962]
[1725004271849,11.06822359,139.04,139.01,7.12291885]
[1725004272049,0.04822359,139.04,139.01,7.12291885]
[1725004272247,0.04822359,139.04,139.01,3.52671885]
[1725004272446,0.04822359,139.04,138.99,11.02]
[1725004272648,0.04822359,139.04,138.99,3.64795778]
[1725004272859,0.04822359,139.04,138.98,11.02]
[1725004273460,0.04822359,139.04,138.98,14.6719124]
[1725004273661,0.04822359,139.04,139.0,3.5964]
[1725004273962,11.02,139.03,139.0,3.5964]
[1725004275253,11.02,139.02,138.96,40.01847735]
[1725004275454,0.05009648,139.0,138.96,40.01847735]
[1725004275655,0.05009648,139.0,138.98,3.5968]
[1725004277260,0.05009648,139.0,138.96,3.60687341]
[1725004277766,11.02,138.99,138.96,3.5975]
[1725004277959,11.02,138.99,138.94,11.02]
[1725004278164,0.05404847,138.98,138.94,11.02]
[1725004278458,0.05404847,138.98,138.92,8.91226647]
[1725004278663,0.05404847,138.98,138.94,11.02]
[1725004278859,0.05404847,138.98,138.94,14.58747798]
[1725004279656,0.05404847,138.98,138.96,3.5975]
[1725004279858,0.05404847,138.98,138.94,14.58747798]
[1725004281263,0.05404847,138.98,138.97,3.5973]
[1725004282271,0.05404847,138.98,138.95,11.02]
[1725004282666,0.05404847,138.98,138.97,3.5973]
[1725004282864,0.05404847,138.98,138.97,14.6173]
[1725004284076,0.05404847,138.98,138.97,3.5973]
[1725004286879,0.05404847,138.98,138.97,14.6173]
[1725004287176,18.29383126,139.04,138.99,3.5966]
[1725004287379,23.59383126,139.04,138.97,11.02]
[1725004287585,11.02,139.03,138.97,11.02]
[1725004287774,14.6158,139.03,138.98,3.5969]
[1725004288078,0.04694628,139.02,138.99,0.04798655]
[1725004289785,0.04694628,139.02,138.99,3.64468655]
[1725004290883,0.04694628,139.02,138.99,0.04798655]
[1725004291476,0.04694628,139.02,139.0,3.54636675]
[1725004291987,0.04694628,139.02,139.01,3.5963]
[1725004292281,0.04694628,139.02,139.01,7.16614112]
[1725004292480,11.02,139.09,139.01,3.56984112]
[1725004292778,16.32,139.1,139.04,11.02]
[1725004293472,0.04994488,139.08,139.06,0.05154984]
[1725004294776,11.06994488,139.08,139.06,0.05154984]
[1725004296276,0.04994488,139.08,139.06,0.05154984]
[1725004296471,11.06994488,139.08,139.06,0.05154984]
[1725004296674,11.02,139.07,139.06,0.05154984]
[1725004300790,11.06994488,139.08,139.06,0.05154984]
[1725004300992,0.04994488,139.08,139.06,0.05154984]
[1725004301289,0.04994488,139.08,139.07,3.5947]
[1725004303787,0.04994488,139.08,139.06,3.64654984]
[1725004304488,11.06994488,139.08,139.06,0.05154984]
[1725004309587,11.06994488,139.08,139.06,3.64654984]
[1725004311496,11.02,139.07,139.06,0.05154984]
[1725004323101,0.04994488,139.08,139.06,3.64654984]
[1725004324104,11.02,139.07,139.06,3.64654984]
[1725004329699,0.04994488,139.08,139.06,3.64654984]
[1725004330905,0.04994488,139.08,139.07,3.5947]
[1725004331314,11.02,139.13,139.06,11.02]
[1725004331505,11.02,139.13,139.1,3.5938]
[1725004331908,11.02,139.13,139.09,3.64700589]
[1725004332106,11.02,139.13,139.11,3.5935]
[1725004332302,11.06775808,139.13,139.11,3.6441466]
[1725004334610,11.06775808,139.13,139.11,0.0506466]
[1725004334611,11.02,139.12,139.11,0.0506466]
[1725004336708,11.02,139.12,139.11,3.6443466]
[1725004340511,11.02,139.12,139.11,0.0506466]
[1725004340918,11.02,139.12,139.07,3.67803675]
[1725004341224,11.02,139.09,139.03,11.02]
[1725004341520,11.02,139.06,139.01,2.6089]
[1725004341718,11.02,139.03,139.02,1.19586686]
[1725004341914,11.02,139.03,139.01,2.6089]
[1725004341915,11.02,139.03,139.01,2.66392297]
[1725004342313,11.02,139.03,139.01,0.05502297]
[1725004343319,11.02,139.03,139.02,3.596]
[1725004344235,0.05234749,139.04,139.02,3.596]
[1725004344534,11.02,139.03,139.02,3.596]
[1725004344734,0.05234749,139.04,139.02,3.596]
[1725004345434,0.05234749,139.04,139.01,3.65122297]
[1725004345636,11.02,139.03,139.01,3.65122297]
[1725004345837,11.02,139.02,139.01,0.05502297]
[1725004350430,0.05234749,139.04,139.01,0.05502297]
[1725004350939,0.05234749,139.04,139.02,3.596]
[1725004353037,0.05234749,139.04,139.03,3.5958]
[1725004356247,0.05234749,139.04,139.02,3.5959]
[1725004357441,0.05234749,139.04,139.03,3.5958]
[1725004360748,11.07234749,139.04,139.03,3.5958]
[1725004365347,11.07234749,139.04,139.02,3.5959]
[1725004366550,11.07234749,139.04,139.01,0.05502297]
[1725004366551,11.02,139.03,139.01,3.65122297]
[1725004368361,11.02,139.03,139.01,0.05502297]
[1725004368554,11.02,139.03,139.02,3.596]
[1725004369060,0.05234749,139.04,139.03,3.5958]
[1725004372150,0.05234749,139.04,139.02,3.5958]
[1725004374151,0.05234749,139.04,139.01,3.65122297]
[1725004376052,0.05234749,139.04,139.02,3.596]
[1725004376455,0.05234749,139.04,139.01,3.65132297]
[1725004378356,0.05234749,139.04,139.01,0.05502297]
[1725004379059,0.05234749,139.04,139.01,3.65132297]
[1725004380253,0.05234749,139.04,139.02,3.596]
[1725004380652,0.05234749,139.04,139.01,0.05502297]
[1725004380851,11.07234749,139.04,139.01,0.05502297]
[1725004381052,11.07234749,139.04,139.01,3.65112297]
[1725004382559,11.07234749,139.04,139.01,0.05502297]
[1725004384366,11.07234749,139.04,139.01,3.65122297]
[1725004384968,0.05234749,139.04,139.02,3.596]
[1725004385668,0.05234749,139.04,139.01,3.65122297]
[1725004389173,0.05234749,139.04,139.02,3.596]
[1725004394166,0.05234749,139.04,139.03,3.5958]
[1725004394960,0.05234749,139.04,139.01,3.61710831]
[1725004395170,11.02,139.03,139.01,0.05502297]
[1725004396265,11.02,139.03,139.01,3.65112297]
[1725004398974,11.02,139.03,139.01,0.05502297]
[1725004404568,11.02,139.03,139.01,3.65112297]
[1725004404771,11.02,139.03,139.01,0.05502297]
[1725004421487,0.05234749,139.04,139.01,0.05502297]
[1725004421691,11.02,139.03,139.01,0.05502297]
[1725004423284,0.05234749,139.04,139.01,3.65132297]
[1725004429197,0.05234749,139.04,139.02,3.5959]
[1725004449913,11.02,139.03,139.01,0.05502297]
[1725004450112,11.02,139.02,139.01,0.05502297]
[1725004450813,11.02,139.03,139.01,0.05502297]
[1725004451210,11.02,139.03,139.01,3.65112297]
[1725004455906,11.02,139.03,139.01,0.05502297]
[1725004462221,11.02,139.02,139.01,0.05502297]
[1725004463324,18.28942677,139.02,138.95,7.89695718]
[1725004463621,11.02,139.0,138.93,15.9]
[1725004464019,11.02,139.0,138.93,11.02]
[1725004464320,0.04712983,138.98,138.96,0.04788619]
[1725004467722,0.04712983,138.98,138.96,3.64548619]
[1725004468227,0.04712983,138.98,138.96,0.04788619]
[1725004471019,11.06712983,138.98,138.96,0.04788619]
[1725004474030,11.02,138.97,138.96,0.04788619]
[1725004474437,11.06712983,138.98,138.96,0.04788619]
[1725004475831,0.04712983,138.98,138.96,0.04788619]
[1725004484537,0.04712983,138.98,138.96,3.64538619]
[1725004484939,0.04712983,138.98,138.96,0.04788619]
[1725004487835,0.04712983,138.98,138.96,3.64548619]
[1725004492349,0.04712983,138.98,138.96,0.04788619]
[1725004492756,11.06712983,138.98,138.96,3.64538619]
[1725004495053,11.06712983,138.98,138.96,0.04788619]
[1725004497957,0.04712983,138.98,138.96,0.04788619]
[1725004498156,11.06712983,138.98,138.97,3.5973]
[1725004498358,11.06712983,138.98,138.96,0.04788619]
[1725004499058,11.06712983,138.98,138.96,3.64538619]
[1725004500358,11.06712983,138.98,138.97,3.5973]
[1725004500359,0.04712983,138.98,138.97,3.5973]
[1725004510860,11.06712983,138.98,138.96,3.64538619]
[1725004511055,11.06712983,138.98,138.96,0.04788619]
[1725004511566,11.06712983,138.98,138.96,3.64538619]
[1725004512465,0.04712983,138.98,138.96,3.64538619]
[1725004520677,11.02,138.97,138.96,0.04788619]
[1725004524472,0.04712983,138.98,138.96,0.04788619]
[1725004524673,11.06712983,138.98,138.96,0.04788619]
[1725004531371,0.04712983,138.98,138.96,0.04788619]
[1725004531767,11.02,138.97,138.96,0.04788619]
[1725004531969,0.04712983,138.98,138.96,0.04788619]
[1725004533371,0.04712983,138.98,138.97,3.5973]
[1725004538777,0.04712983,138.98,138.96,3.64538619]
[1725004540779,11.02,138.97,138.96,0.04788619]
[1725004546987,11.02,138.97,138.91,4.88]
[1725004547286,11.02,138.96,138.92,1.19683185]
[1725004547787,11.02,138.96,138.94,3.5979]
[1725004548190,11.07113138,138.96,138.94,3.5979]
[1725004549183,0.05113138,138.96,138.94,3.65431079]
[1725004549400,0.05113138,138.96,138.91,15.9]
[1725004549585,0.05113138,138.96,138.92,1.19682158]
[1725004549779,0.05113138,138.96,138.92,6.07682158]
[1725004550083,0.05113138,138.96,138.92,4.88]
[1725004550287,0.05113138,138.96,138.95,3.5978]
[1725004555296,11.07113138,138.96,138.95,3.5978]
[1725004556585,11.07113138,138.96,138.94,3.598]
[1725004556791,11.02,138.95,138.92,4.88]
[1725004557094,11.07113138,138.96,138.92,4.88]
[1725004557489,11.07113138,138.96,138.9,2.7016]
[1725004557689,11.07113138,138.96,138.91,1.19685509]
[1725004558097,11.07113138,138.96,138.9,18.6016]
[1725004558295,11.07113138,138.96,138.91,1.19685388]
[1725004560397,0.05113138,138.96,138.92,11.02]
[1725004560600,0.05113138,138.96,138.94,3.598]
[1725004560988,0.05113138,138.96,138.92,1.3862]
[1725004561189,0.05113138,138.96,138.92,12.4062]
[1725004562795,0.05113138,138.96,138.92,1.3862]
[1725004563999,0.05113138,138.96,138.95,3.5978]
[1725004566899,0.05113138,138.96,138.94,3.598]
[1725004571800,0.05113138,138.96,138.95,3.5978]
[1725004572907,0.05113138,138.96,138.94,3.598]
[1725004573206,11.02,138.95,138.88,15.54755929]
[1725004573400,0.04919104,138.93,138.9,11.02]
[1725004573602,11.02,138.97,138.91,1.19686274]
[1725004573798,0.04930862,138.95,138.91,1.19686274]
[1725004575607,0.04930862,138.95,138.91,12.21686274]
[1725004575806,0.04930862,138.95,138.91,12.4171]
[1725004576511,0.04930862,138.95,138.94,3.5981]
[1725004578499,0.04930862,138.95,138.91,1.3971]
[1725004580409,0.04930862,138.95,138.93,3.5981]
[1725004580606,0.04930862,138.95,138.91,1.3971]
[1725004581706,0.04930862,138.95,138.93,3.5981]
[1725004581905,0.04930862,138.95,138.91,1.3971]
[1725004582501,0.04930862,138.95,138.94,3.5981]
[1725004582703,0.04930862,138.95,138.94,7.26904396]
[1725004583502,0.04930862,138.95,138.93,3.5982]
[1725004584212,0.04930862,138.95,138.94,3.5981]
[1725004589117,0.04930862,138.95,138.94,7.15972117]
[1725004590724,1.3212,139.04,138.94,14.58162117]
[1725004591022,11.02,139.03,138.97,11.02]
[1725004591819,0.0459997,139.01,138.99,3.64547452]
[1725004592821,0.0459997,139.01,139.0,3.5965]
[1725004593913,0.0459997,139.01,138.99,3.64557452]
[1725004595523,11.0659997,139.01,138.99,3.64557452]
[1725004596118,11.0659997,139.01,138.99,0.04887452]
[1725004596315,11.02,139.0,138.99,0.04887452]
[1725004597123,11.02,139.0,138.99,3.64567452]
[1725004598326,0.0459997,139.01,138.99,3.64567452]
[1725004598624,11.0659997,139.01,138.99,3.64567452]
[1725004598820,11.0659997,139.01,138.99,0.04887452]
[1725004599918,11.0659997,139.01,138.99,3.64557452]
[1725004601128,11.0659997,139.01,138.97,3.62069709]
[1725004601129,11.02,139.0,138.97,7.21779709]
[1725004601319,11.02,138.98,138.97,3.5971]
[1725004601718,0.0459997,139.01,138.97,3.5971]
[1725004601922,0.0459997,139.01,138.98,3.597]
[1725004602227,0.0459997,139.01,138.97,15.94]
[1725004602429,0.0459997,139.01,138.92,12.19904527]
[1725004602430,0.0459997,139.01,139.0,3.5965]
[1725004602633,0.0459997,139.01,139.0,7.1474896]
[1725004620536,11.02,139.05,139.0,4.74705645]
[1725004620841,11.02,139.05,139.01,1.19606685]
[1725004621240,11.02,139.05,138.99,6.3232]
[1725004621439,0.05092932,139.03,139.02,3.596]
[1725004621945,0.05092932,139.03,139.02,8.476]
[1725004622141,0.05092932,139.03,139.02,3.596]
[1725004622744,0.05092932,139.03,139.02,8.476]
[1725004625544,11.07092932,139.03,139.01,0.0464338]
[1725004627644,0.05092932,139.03,139.01,0.0464338]
[1725004627842,0.05092932,139.03,139.01,3.6425338]
[1725004628339,0.05092932,139.03,139.02,3.58627038]
[1725004631037,0.05092932,139.03,139.02,7.18227038]
[1725004631650,0.05092932,139.03,139.02,3.58627038]
[1725004631945,0.05092932,139.03,139.01,0.0464338]
[1725004632141,11.07092932,139.03,139.01,0.0464338]
[1725004635755,14.66672932,139.03,138.98,3.57897918]
[1725004635955,11.02,139.01,138.98,3.57897918]
[1725004637960,0.05092932,139.03,138.97,11.02]
[1725004638351,0.05092932,139.03,138.97,15.9]
[1725004638555,0.05092932,139.03,138.97,19.51406415]
[1725004638852,0.05092932,139.03,138.97,14.63406415]
[1725004639052,0.05092932,139.03,138.97,19.51406415]
[1725004639245,0.05092932,139.03,138.98,11.02]
[1725004640354,0.05092932,139.03,139.0,3.5964]
[1725004646862,0.05092932,139.03,139.01,3.5962]
[1725004647050,0.05092932,139.03,138.99,11.02]
[1725004647451,0.05092932,139.03,139.02,3.596]
[1725004647851,0.05092932,139.03,138.99,11.02]
[1725004648659,0.05092932,139.03,139.02,3.596]
[1725004648859,0.05092932,139.03,139.02,14.616]
[1725004649871,0.05092932,139.03,139.02,20.6919748]
[1725004650363,1.354,139.1,139.05,3.5951]
[1725004650662,11.02,139.09,139.05,7.22358037]
[1725004650859,11.02,139.09,139.05,3.5951]
[1725004651451,0.05110545,139.08,139.06,0.04799134]
[1725004652469,0.05110545,139.08,139.06,11.06799134]
[1725004652866,0.05110545,139.08,139.07,3.5947]
[1725004653764,0.05110545,139.08,139.06,3.70165954]
[1725004654068,11.07110545,139.08,139.06,0.04799134]
[1725004656856,11.07110545,139.08,139.06,3.64289134]
[1725004657057,0.05110545,139.08,139.06,3.64289134]
[1725004664070,0.05110545,139.08,139.07,3.5947]
[1725004664866,0.05110545,139.08,139.06,3.64289134]
[1725004665268,0.05110545,139.08,139.06,0.04799134]
[1725004665482,0.05110545,139.08,139.07,3.5947]
[1725004665970,11.07110545,139.08,139.06,0.04799134]
[1725004666279,11.07110545,139.08,139.06,3.64289134]
[1725004667769,11.07110545,139.08,139.06,0.04799134]
[1725004680181,0.05110545,139.08,139.06,3.64299134]
[1725004680386,0.05110545,139.08,139.06,11.06799134]
[1725004681382,0.05110545,139.08,139.07,3.5947]
[1725004687483,0.05110545,139.08,139.07,14.6147]
[1725004688981,77.75175974,139.14,139.1,3.5939]
[1725004689793,11.02,139.14,139.1,3.5939]
[1725004689994,0.04767354,139.13,139.11,0.0540613]
[1725004691289,0.04767354,139.13,139.12,3.5549046]
[1725004691491,0.04767354,139.13,139.11,0.0540613]
[1725004692291,0.04767354,139.13,139.12,3.5934]
[1725004692489,0.04767354,139.13,139.12,7.2485389]
[1725004692795,0.04767354,139.13,139.12,3.6551389]
[1725004692997,0.04767354,139.13,139.11,0.0540613]
[1725004693299,11.06767354,139.13,139.11,3.6476613]
[1725004693598,0.04767354,139.13,139.12,3.56937788]
[1725004693809,0.04767354,139.13,139.12,7.16277788]
[1725004694093,0.04767354,139.13,139.11,0.0540613]
[1725004695002,0.04767354,139.13,139.11,3.6476613]
[1725004699800,0.04767354,139.13,139.11,0.0540613]
[1725004700704,0.04767354,139.13,139.12,3.55896328]
[1725004700907,0.04767354,139.13,139.11,0.0540613]
[1725004701103,0.04767354,139.13,139.11,3.6475613]
[1725004701810,11.06767354,139.13,139.11,0.0540613]
[1725004702110,11.02,139.12,139.11,0.0540613]
[1725004702302,11.02,139.12,139.06,4.88]
[1725004702509,11.02,139.09,139.05,8.51713901]
[1725004702703,2.728,139.12,139.04,17.1811]
[1725004703006,11.02,139.11,139.05,4.88]
[1725004703409,0.05455503,139.09,139.07,3.64257347]
[1725004704001,0.05455503,139.09,139.08,3.5945]
[1725004708315,0.05455503,139.09,139.07,3.64257347]
[1725004711319,0.05455503,139.09,139.08,3.5945]
[1725004712109,0.05455503,139.09,139.07,3.64267347]
[1725004720024,0.05455503,139.09,139.08,3.5945]
[1725004722030,0.05455503,139.09,139.08,14.6145]
[1725004723518,0.05455503,139.09,139.08,3.5945]
[1725004729133,0.05455503,139.09,139.07,0.04797347]
[1725004734131,11.02,139.08,139.07,0.04797347]
[1725004739644,11.02,139.08,139.0,85.04579372]
[1725004739847,11.02,139.06,139.0,85.04579372]
[1725004740046,11.02,139.06,139.0,89.90579372]
[1725004740245,11.02,139.06,139.04,3.5955]
[1725004740637,11.02,139.06,139.0,104.53496616]
[1725004740638,0.04631419,139.06,139.0,104.53496616]
[1725004740843,0.04631419,139.06,139.0,99.67496616]
[1725004741038,11.02,139.05,139.0,99.67496616]
[1725004741242,11.02,139.05,139.03,3.5956]
[1725004743250,11.02,139.05,139.02,3.5959]
[1725004745642,11.02,139.05,139.01,3.5962]
[1725004751558,11.02,139.05,139.0,88.65496616]
[1725004751559,11.02,139.04,139.0,88.65496616]
[1725004752449,14.6155,139.04,139.0,88.65496616]
[1725004752955,11.02,139.04,139.0,88.65496616]
[1725004753550,11.02,139.04,139.0,92.25146616]
[1725004753752,11.02,139.04,139.0,88.65496616]
[1725004753953,11.02,139.03,138.98,4.86]
[1725004754159,0.04659774,139.02,138.98,4.86]
[1725004754757,0.04659774,139.02,138.99,7.21615889]
[1725004754955,0.04659774,139.02,138.99,3.61955889]
[1725004755161,0.04659774,139.02,138.97,6.254]
[1725004755459,0.04659774,139.02,138.97,1.394]
[1725004755653,0.04659774,139.02,138.98,3.5968]
[1725004755854,0.04659774,139.02,138.99,3.52032394]
[1725004756255,0.04659774,139.02,138.98,3.5968]
[1725004759063,3.64269774,139.02,138.97,3.5972]
[1725004759256,11.02,139.01,138.97,3.5972]
[1725004759460,11.02,139.01,138.95,4.86]
[1725004759665,11.02,139.01,138.96,3.5974]
[1725004759666,14.6163,139.01,138.96,3.5974]
[1725004759959,0.04561651,139.0,138.96,3.5974]
[1725004760554,0.04561651,139.0,138.95,3.5977]
[1725004763464,0.04561651,139.0,138.95,14.6177]
[1725004766755,0.04561651,139.0,138.96,3.5975]
[1725004769170,0.04561651,139.0,138.97,3.5973]
[1725004773169,0.04561651,139.0,138.98,11.02]
[1725004773770,0.04561651,139.0,138.98,14.6169]
[1725004776772,0.04561651,139.0,138.99,3.5968]
[1725004777274,0.04561651,139.0,138.99,14.6168]
[1725004779171,0.04561651,139.0,138.99,3.5968]
[1725004793384,0.04561651,139.0,138.98,3.5969]
[1725004799180,11.06561651,139.0,138.95,4.86]
[1725004799484,11.06561651,139.0,138.94,1.2803]
[1725004799679,11.06561651,139.0,138.94,12.3003]
[1725004800284,0.04561651,139.0,138.96,3.5974]
[1725004803586,0.04561651,139.0,138.94,1.2803]
[1725004804687,0.04561651,139.0,138.96,3.5974]
[1725004806683,0.04561651,139.0,138.97,3.5973]
[1725004808195,0.04561651,139.0,138.98,3.5969]
[1725004811495,0.04561651,139.0,138.99,3.5968]
[1725004814497,0.04561651,139.0,138.99,7.17901978]
[1725004815486,2.7067,139.07,139.02,3.596]
[1725004815892,4.86,139.06,139.02,3.596]
[1725004816192,3.58257941,139.05,139.01,3.5961]
[1725004816592,0.04621784,139.04,139.02,0.04561651]
[1725004818197,0.04621784,139.04,139.03,3.5958]
[1725004819496,0.04621784,139.04,139.02,0.04561651]
[1725004820102,3.64171784,139.04,139.02,0.04561651]
[1725004821203,0.04621784,139.04,139.02,0.04561651]
[1725004822003,0.04621784,139.04,139.03,3.5958]
[1725004824100,0.04621784,139.04,139.02,3.64151651]
[1725004825300,0.04621784,139.04,139.03,3.5958]
[1725004835018,0.04621784,139.04,139.02,0.04561651]
[1725004836524,0.04621784,139.04,139.03,3.5958]
[1725004842238,0.04621784,139.04,139.03,7.26948163]
[1725004843838,0.04621784,139.04,139.03,3.5958]
[1725004844433,0.04621784,139.04,139.02,7.26486881]
[1725004844644,0.04621784,139.04,139.02,3.64151651]
[1725004845244,0.04621784,139.04,139.02,3.66321689]
[1725004846233,0.04621784,139.04,139.02,7.25921689]
[1725004846440,0.04621784,139.04,139.02,3.64161651]
[1725004846836,0.04621784,139.04,139.02,0.04561651]
[1725004848643,0.04621784,139.04,139.03,3.5958]
[1725004849045,0.04621784,139.04,139.02,0.04561651]
[1725004849531,0.04621784,139.04,139.02,3.64151651]
[1725004851338,0.04621784,139.04,139.03,3.5958]
[1725004852241,0.04621784,139.04,139.02,3.64151651]
[1725004853145,0.04621784,139.04,139.03,3.5958]
[1725004853934,0.04621784,139.04,139.02,3.64161651]
[1725004854539,0.04621784,139.04,139.03,3.5958]
[1725004857142,2.7195,139.11,139.02,0.04561651]
[1725004857345,11.14856852,139.11,139.01,1.19607213]
[1725004857551,6.3134,139.11,139.0,3.56357593]
[1725004857742,6.34429028,139.11,139.0,3.56357593]
[1725004858251,0.04734277,139.07,139.04,0.04946182]
[1725004858747,0.04734277,139.07,139.04,3.64476182]
[1725004859939,0.04734277,139.07,139.04,0.04946182]
[1725004861342,0.04734277,139.07,139.06,3.595]
[1725004876752,0.04734277,139.07,138.96,23.07874961]
[1725004876957,3.5954,139.05,138.95,82.0843659]
[1725004877159,3.5954,139.05,138.96,1.19626035]
[1725004877360,3.5954,139.05,139.0,3.5965]
[1725004877963,0.05289394,139.04,139.01,0.04237253]
[1725004878569,0.05289394,139.04,139.01,3.63867253]
[1725004881667,3.64839394,139.04,139.01,0.04237253]
[1725004881962,0.05289394,139.04,139.01,0.04237253]
[1725004883166,0.05289394,139.04,139.02,3.596]
[1725004885569,0.05289394,139.04,139.03,3.5958]
[1725004885767,0.05289394,139.04,139.01,0.04237253]
[1725004886872,0.05289394,139.04,139.02,3.596]
[1725004887367,0.05289394,139.04,139.01,0.04237253]
[1725004888368,0.05289394,139.04,139.01,3.63857253]
[1725004890159,0.05289394,139.04,139.02,3.5959]
[1725004891068,0.05289394,139.04,139.03,3.5958]
[1725004891964,0.05289394,139.04,139.03,7.23548903]
[1725004892173,0.05289394,139.04,139.03,3.5958]
[1725004892670,0.05289394,139.04,139.03,7.26712599]
[1725004912100,0.05289394,139.04,139.01,0.04237253]
[1725004912690,0.05289394,139.04,139.01,3.63847253]
[1725004913589,0.05289394,139.04,139.02,3.596]
[1725004919296,0.05289394,139.04,139.03,7.19244878]
[1725004919502,0.05289394,139.04,139.03,3.5958]
[1725004920099,0.05289394,139.04,139.03,7.26777961]
[1725004924412,0.05289394,139.04,139.03,3.5958]
[1725004927308,0.05289394,139.04,139.03,7.18412471]
[1725004930713,0.05289394,139.04,139.03,3.5958]
[1725004934709,0.05289394,139.04,139.03,7.19239163]
[1725004937009,0.05289394,139.04,139.03,3.5958]
[1725004937214,0.05289394,139.04,139.03,7.2517001]
[1725004941115,0.05289394,139.04,139.03,3.5958]
[1725004941315,0.05289394,139.04,139.02,3.5959]
[1725004941517,0.05289394,139.04,139.01,4.88237253]
[1725004941719,0.05289394,139.04,139.01,0.04237253]
[1725004944713,0.05289394,139.04,139.01,3.63857253]
[1725004945214,0.05289394,139.04,139.01,0.04237253]
[1725004954725,0.05289394,139.04,139.01,3.63847253]
[1725004959828,0.05289394,139.04,139.01,0.04237253]
[1725004961730,0.05289394,139.04,139.01,4.88237253]
[1725004961928,0.05289394,139.04,139.01,0.04237253]
[1725004962232,0.05289394,139.04,139.01,4.86237253]
[1725004962427,0.05289394,139.04,139.03,3.5958]
[1725004962625,0.05289394,139.04,139.03,7.25267561]
[1725004963530,2.7641,139.12,139.03,7.25267561]
[1725004963727,2.7641,139.12,139.03,3.65687561]
[1725004963930,7.5841,139.12,139.02,1.4008]
[1725004964335,2.7641,139.12,139.02,1.4008]
[1725004964628,0.04611517,139.08,139.06,3.64300823]
[1725004966530,0.04611517,139.08,139.07,11.05]
[1725004966731,0.04611517,139.08,139.07,14.6447]
[1725004968631,0.04611517,139.08,139.07,3.5947]
[1725004990751,0.04611517,139.08,139.06,0.04820823]
[1725004990752,11.09611517,139.08,139.06,0.04820823]
[1725004990949,14.68622872,139.07,139.06,0.04820823]
[1725004992039,3.64071517,139.08,139.06,0.04820823]
[1725004992251,0.04611517,139.08,139.06,0.04820823]
[1725004992739,17.1929,139.08,138.99,1.19596488]
[1725004993052,11.05,139.05,138.99,1.19596488]
[1725004993249,14.58307584,139.05,138.99,1.19596488]
[1725004993448,6.1245,139.07,138.99,1.19596488]
[1725004993653,0.04922809,139.04,139.02,0.04705824]
[1725004993846,0.04922809,139.04,139.03,3.5958]
[1725004997360,0.04922809,139.04,139.03,14.6458]
[1725005002159,1.3674,139.12,139.03,14.58671395]
[1725005002364,12.4174,139.12,139.06,11.05]
[1725005002874,3.594,139.1,139.06,14.6448]
[1725005003270,0.05505832,139.09,139.07,0.04950358]
[1725005003972,0.05505832,139.09,139.07,3.64420358]
[1725005006070,0.05505832,139.09,139.08,3.5945]
[1725005011175,0.05505832,139.09,139.08,3.5945]
[1725005012276,14.69945832,139.09,139.07,0.04950358]
[1725005012472,11.05,139.08,139.07,0.04950358]
[1725005013172,14.6445,139.08,139.07,0.04950358]
[1725005015477,4.87505832,139.09,139.07,0.04950358]
[1725005015684,15.92505832,139.09,139.07,0.04950358]
[1725005015977,11.10505832,139.09,139.07,0.04950358]
[1725005016180,15.92505832,139.09,139.07,0.04950358]
[1725005016577,3.5945,139.08,139.07,0.04950358]
[1725005029781,15.92505832,139.09,139.07,0.04950358]
[1725005030587,15.92505832,139.09,139.07,3.64410358]
[1725005031279,11.10505832,139.09,139.07,3.64410358]
[1725005031480,14.69925832,139.09,139.07,3.64410358]
[1725005036907,14.69925832,139.09,139.07,0.04950358]
[1725005037585,3.5945,139.08,139.07,0.04950358]
[1725005040995,14.69945832,139.09,139.07,0.04950358]
[1725005041196,14.69945832,139.09,139.07,3.64420358]